[Event "EYTCC U12 Girls 2018"]
[Site "Bad Blankeburg"]
[Date "2018.07.14"]
[Round "4"]
[White "Markus, Molli Amina"]
[Black "Nguyen, Jenny Ha-Linh"]
[Result "1-0"]
[ECO "A49"]
[WhiteElo "1566"]
[BlackElo "1354"]
[Annotator "NA"]
[PlyCount "127"]
[EventDate "2018.07.12"]
[EventType "swiss"]
[EventCountry "GER"]
[SourceTitle "playchess.com"]
[Source "ChessBase"]
[SourceQuality "1"]
[TimeControl "40/5400+30:1800+30"]

1. d4 {[%emt 0:00:00]} Nf6 {[%emt 0:00:00]} 2. Nf3 {[%emt 0:00:00]} g6 3. g3 Bg7 {[%emt 0:00:53]} 4. Bg2 {[%emt 0:01:43]} O-O {[%emt 0:00:55]} 5. O-O {[%emt 0:01:27]} d6 {[%emt 0:00:19]} 6. c4 {[%emt 0:02:33]} Nbd7 {[%emt 0:01:28]} 7. Nc3 {[%emt 0:02:24]} c6 {[%emt 0:01:10]} 8. Re1 {[%emt 0:03:36]} Qc7 {[%emt 0:01:16]} 9. e4 {[%emt 0:02:39]} e5 {[%emt 0:01:57]} 10. d5 {[%emt 0:04:51]} c5 {[%emt 0:08:28]} 11. Bg5 {[%emt 0:09:22]} a6 {[%emt 0:05:49]} 12. a4 {[%emt 0:04:57]} h6 {[%emt 0:02:51]} 13. Bxf6 {[%emt 0:00:48]} Nxf6 {[%emt 0:00:13]} 14. a5 {[%emt 0:03:16]} Bd7 {[%emt 0:06:37]} 15. Qd2 {[%emt 0:08:56]} Nh5 {[%emt 0:07:38]} 16. Nh4 {[%emt 0:03:27]} g5 {[%emt 0:12:15]} 17. Qe2 {[%emt 0:04:32]} Nf6 {[%emt 0:01:18]} 18. Nf3 {[%emt 0:00:43]} Nh7 {[%emt 0:14:21]} 19. h4 g4 {[%emt 0:06:45]} 20. Nh2 {[%emt 0:07:32]} h5 {[%emt 0:02:26]} 21. f3 {[%emt 0:02:22]} Nf6 {[%emt 0:02:44]} 22. Rf1 {[%emt 0:01:42]} Bh6 {[%emt 0:09:58]} 23. Nd1 {[%emt 0:05:26]} Qc8 {[%emt 0:02:21]} 24. Ne3 {[%emt 0:02:25]} Kh7 {[%emt 0:03:45]} 25. Kh1 {[%emt 0:01:27]} Kh8 {[%emt 0:01:45]} 26. fxg4 {[%emt 0:03:17]} Nxg4 {[%emt 0:00:17]} 27. Nexg4 {[%emt 0:00:57]} Bxg4 {[%emt 0:00:21]} 28. Nxg4 {[%emt 0:00:43]} Qxg4 {[%emt 0:00:07]} 29. Qxg4 {[%emt 0:00:50]} hxg4 {[%emt 0:00:06]} 30. Rf6 {[%emt 0:00:24]} Be3 {[%emt 0:00:56]} 31. Rxd6 {[%emt 0:01:07]} Rad8 {[%emt 0:00:17]} 32. Rf6 {[%emt 0:00:54]} Kg7 {[%emt 0:00:18]} 33. Raf1 {[%emt 0:01:12]} Bd4 {[%emt 0:00:29]} 34. b3 {[%emt 0:00:23]} Bc3 {[%emt 0:00:05]} 35. Kh2 {[%emt 0:02:50]} Bxa5 {[%emt 0:00:22]} 36. Kg1 {[%emt 0:02:08]} Rde8 {[%emt 0:00:28]} 37. h5 {[%emt 0:00:48]} Bd2 {[%emt 0:00:19]} 38. R6f5 {[%emt 0:01:55]} Be3+ {[%emt 0:00:33]} 39. Kh1 {[%emt 0:00:24]} b5 {[%emt 0:00:34]} 40. Ra1 {[%emt 0:00:52]} bxc4 {[%emt 0:00:36]} 41. bxc4 {[%emt 0:30:23]} Bd4 {[%emt 0:30:21]} 42. Rxa6 {[%emt 0:00:57]} Be3 {[%emt 0:00:07]} 43. Bf1 {[%emt 0:01:12]} Rb8 {[%emt 0:01:31]} 44. Rxe5 {[%emt 0:01:57]} Rb1 {[%emt 0:00:19]} 45. Rf5 {[%emt 0:00:36]} Re8 {[%emt 0:01:38]} 46. e5 {[%emt 0:11:13]} Bd4 {[%emt 0:00:39]} 47. h6+ {[%emt 0:00:00]} Kg8 {[%emt 0:00:00]} 48. Raf6 {[%emt 0:00:00]} Re7 {[%emt 0:00:00]} 49. d6 {[%emt 0:00:00]} Rd7 {[%emt 0:00:00]} 50. Rg5+ {[%emt 0:00:00]} Kh8 {[%emt 0:00:00]} 51. Kh2 {[%emt 0:00:00]} Rb2+ {[%emt 0:00:00]} 52. Bg2 {[%emt 0:00:00]} Rb4 {[%emt 0:00:00]} 53. Be4 {[%emt 0:00:00]} Rxc4 {[%emt 0:00:00]} 54. Rxg4 {[%emt 0:00:00]} Rb4 {[%emt 0:00:00]} 55. h7 {[%emt 0:00:00]} Rb2+ {[%emt 0:00:00]} 56. Kh3 {[%emt 0:00:00]} Rb8 {[%emt 0:00:00]} 57. Rf5 {[%emt 0:00:00]} c4 {[%emt 0:00:00]} 58. Rfg5 {[%emt 0:00:00]} Rdd8 {[%emt 0:00:00]} 59. Bd5 {[%emt 0:00:00]} Be3 {[%emt 0:00:00]} 60. Rg7 {[%emt 0:00:00]} c3 {[%emt 0:00:00]} 61. Bxf7 {[%emt 0:00:00]} c2 {[%emt 0:00:00]} 62. Rg8+ {[%emt 0:00:00]} Rxg8 {[%emt 0:00:00]} 63. Rxg8+ {[%emt 0:00:00]} Rxg8 {[%emt 0:00:00]} 64. hxg8=Q# {[%emt 0:00:00]} 1-0

[Event "EYTCC U12 Girls 2018"]
[Site "Bad Blankeburg"]
[Date "2018.07.14"]
[Round "4"]
[White "Pohle, Saskia"]
[Black "Gaal, Zsoka"]
[Result "0-1"]
[ECO "B12"]
[WhiteElo "1560"]
[BlackElo "2044"]
[Annotator "NA"]
[PlyCount "72"]
[EventDate "2018.07.12"]
[EventType "swiss"]
[EventCountry "GER"]
[SourceTitle "playchess.com"]
[Source "ChessBase"]
[SourceQuality "1"]
[TimeControl "40/5400+30:1800+30"]

1. e4 {[%emt 0:00:00]} c6 {[%emt 0:00:00]} 2. d4 {[%emt 0:00:08]} d5 {[%emt 0:00:00]} 3. e5 {[%emt 0:00:17]} g6 {[%emt 0:00:07]} 4. Nf3 {[%emt 0:03:53]} Bg4 {[%emt 0:02:08]} 5. Bd3 {[%emt 0:04:57]} Bg7 {[%emt 0:03:44]} 6. Nbd2 {[%emt 0:04:48]} e6 {[%emt 0:02:43]} 7. h3 {[%emt 0:01:41]} Bxf3 {[%emt 0:03:54]} 8. Nxf3 {[%emt 0:00:06]} Ne7 {[%emt 0:03:16]} 9. O-O {[%emt 0:00:30]} O-O {[%emt 0:01:36]} 10. Qe2 {[%emt 0:08:27]} Nd7 {[%emt 0:05:15]} 11. c3 {[%emt 0:05:38]} c5 {[%emt 0:03:14]} 12. Be3 {[%emt 0:02:55]} Nc6 {[%emt 0:04:36]} 13. Nd2 {[%emt 0:06:03]} cxd4 {[%emt 0:07:58]} 14. cxd4 {[%emt 0:00:14]} Qb6 {[%emt 0:00:58]} 15. Nb3 {[%emt 0:00:16]} a5 {[%emt 0:10:26]} 16. Rac1 {[%emt 0:04:16]} Rfc8 {[%emt 0:06:41]} 17. f4 {[%emt 0:05:50]} a4 {[%emt 0:07:56]} 18. Nc5 {[%emt 0:00:05]} Nxc5 {[%emt 0:01:39]} 19. dxc5 {[%emt 0:00:04]} Qc7 {[%emt 0:01:45]} 20. Qf2 {[%emt 0:07:58]} Rd8 {[%emt 0:07:37]} 21. Bd4 {[%emt 0:02:50]} Bf8 {[%emt 0:02:55]} 22. Rc3 {[%emt 0:03:18]} Rdc8 {[%emt 0:01:29]} 23. Be3 {[%emt 0:06:26]} d4 {[%emt 0:02:55]} 24. Bxd4 {[%emt 0:05:02]} Nxd4 {[%emt 0:00:11]} 25. Qxd4 {[%emt 0:00:05]} Bxc5 {[%emt 0:00:11]} 26. Rxc5 {[%emt 0:00:04]} Qxc5 {[%emt 0:00:11]} 27. Qxc5 {[%emt 0:00:06]} Rxc5 {[%emt 0:00:01]} 28. Be4 {[%emt 0:02:52]} Rb5 {[%emt 0:01:41]} 29. Rf2 {[%emt 0:00:09]} Rb4 {[%emt 0:00:53]} 30. Re2 {[%emt 0:02:20]} Ra6 {[%emt 0:09:28]} 31. Kf2 {[%emt 0:07:21]} Rab6 {[%emt 0:01:54]} 32. Kg3 {[%emt 0:01:02]} Rxb2 {[%emt 0:01:04]} 33. Rxb2 {[%emt 0:00:11]} Rxb2 {[%emt 0:00:04]} 34. a3 {[%emt 0:00:52]} b5 {[%emt 0:00:15]} 35. Bc6 {[%emt 0:00:18]} b4 {[%emt 0:00:16]} 36. axb4 {[%emt 0:00:32]} a3 {[%emt 0:00:03]} 0-1

[Event "EYTCC U12 Girls 2018"]
[Site "Bad Blankeburg"]
[Date "2018.07.14"]
[Round "5"]
[White "Gaal, Zsoka"]
[Black "Wagner, Margarethe"]
[Result "1/2-1/2"]
[ECO "A46"]
[WhiteElo "2044"]
[BlackElo "1635"]
[Annotator "NA"]
[PlyCount "107"]
[EventDate "2018.07.12"]
[EventType "swiss"]
[EventCountry "GER"]
[SourceTitle "playchess.com"]
[Source "ChessBase"]
[SourceQuality "1"]
[TimeControl "40/5400+30:1800+30"]

1. d4 Nf6 2. Nf3 c5 3. g3 cxd4 4. Qxd4 Nc6 5. Qd1 d5 6. Bg2 e5 7. O-O h6 8. b3 Be6 {[%emt 0:20:57]} 9. Bb2 {[%emt 0:28:10]} Bd6 {[%emt 0:01:38]} 10. e3 {[%emt 0:05:51]} O-O {[%emt 0:01:43]} 11. a4 {[%emt 0:03:48]} Rc8 {[%emt 0:04:46]} 12. Na3 {[%emt 0:04:31]} a6 {[%emt 0:02:11]} 13. Qe2 $17 {[%emt 0:06:54]} (13. c4 $1 $11 {keeps the balance.}) 13... Re8 {[%emt 0:02:47]} 14. Rfd1 {[%emt 0:03:25]} Qc7 {[%emt 0:02:46]} 15. Rac1 {[%emt 0:08:20]} e4 {[%emt 0:17:00]} 16. Nd2 {[%emt 0:07:22]} Be5 {[%emt 0:01:09]} 17. Bxe5 {[%emt 0:01:19]} Qxe5 {[%emt 0:00:25]} 18. h3 {[%emt 0:03:22]} Nb4 {[%emt 0:03:37]} 19. Nf1 {[%emt 0:06:14]} Qb2 {[%emt 0:03:50]} 20. Qd2 {[%emt 0:08:05]} Na2 {[%emt 0:04:14]} 21. Ra1 {[%emt 0:02:23]} Qxa3 {[%emt 0:01:52]} 22. c3 {[%emt 0:02:12]} Qxb3 {[%emt 0:02:23]} 23. Rxa2 {[%emt 0:01:06]} Qxc3 {[%emt 0:00:41]} 24. Rb2 {[%emt 0:01:07]} Qxd2 {[%emt 0:01:17]} 25. Nxd2 {[%emt 0:00:43]} Rc7 {[%emt 0:02:27]} 26. Rdb1 {[%emt 0:01:09]} Rb8 {[%emt 0:01:20]} 27. Nb3 {[%emt 0:01:19]} Bd7 {[%emt 0:03:17]} 28. Na5 {[%emt 0:02:34]} Bxa4 {[%emt 0:00:48]} 29. Nxb7 {[%emt 0:02:09]} Rbc8 {[%emt 0:05:47]} 30. Bf1 {[%emt 0:01:28]} Bc2 {[%emt 0:01:35]} 31. Ra1 {[%emt 0:00:57]} Bd3 {[%emt 0:01:59]} 32. Kg2 {[%emt 0:00:47]} Rb8 {[%emt 0:01:32]} 33. Bxd3 {[%emt 0:00:33]} exd3 {[%emt 0:00:09]} 34. Rab1 {[%emt 0:00:30]} d2 {[%emt 0:00:14]} 35. Rxd2 {[%emt 0:00:23]} Rbxb7 {[%emt 0:00:13]} 36. Ra1 {[%emt 0:00:21]} Ra7 {[%emt 0:01:18]} 37. Ra5 {[%emt 0:00:31]} Kf8 {[%emt 0:00:49]} 38. g4 {[%emt 0:00:35]} Ke7 {[%emt 0:01:08]} 39. e4 {[%emt 0:00:36]} Nxe4 {[%emt 0:05:52]} 40. Rdxd5 {[%emt 0:00:16]} f6 {[%emt 0:01:09]} 41. Rd4 {[%emt 0:04:43]} Nd6 {[%emt 0:02:36]} 42. Rda4 {[%emt 0:02:54]} Rc6 {[%emt 0:02:33]} 43. h4 {[%emt 0:02:37]} Rc4 {[%emt 0:03:52]} 44. Ra2 {[%emt 0:01:19]} Rxg4+ {[%emt 0:03:20]} 45. Kh3 {[%emt 0:00:16]} Rf4 {[%emt 0:00:15]} 46. Kg3 {[%emt 0:00:15]} Rf5 {[%emt 0:00:15]} 47. Rxa6 {[%emt 0:00:14]} Rxa6 {[%emt 0:00:13]} 48. Rxa6 {[%emt 0:00:03]} Ne4+ {[%emt 0:00:15]} 49. Kg4 {[%emt 0:00:40]} Rxf2 {[%emt 0:00:49]} 50. Kh5 {[%emt 0:00:40]} Rg2 {[%emt 0:01:43]} 51. Re6+ {[%emt 0:00:25]} Kd7 {[%emt 0:03:27]} 52. Rd6+ {[%emt 0:00:17]} Ke8 {[%emt 0:01:29]} 53. Re6+ {[%emt 0:00:17]} Kf7 {[%emt 0:00:20]} 54. Re7+ {[%emt 0:00:12]} 1/2-1/2

[Event "EYTCC U12 Girls 2018"]
[Site "Bad Blankeburg"]
[Date "2018.07.14"]
[Round "5"]
[White "Butenandt, Svenja"]
[Black "Pentcheff, Laura"]
[Result "1/2-1/2"]
[ECO "B23"]
[WhiteElo "1751"]
[BlackElo "1594"]
[Annotator "NA"]
[PlyCount "109"]
[EventDate "2018.07.12"]
[EventType "swiss"]
[EventCountry "GER"]
[SourceTitle "playchess.com"]
[Source "ChessBase"]
[SourceQuality "1"]
[TimeControl "40/5400+30:1800+30"]

1. e4 {[%emt 0:00:00]} c5 {[%emt 0:00:00]} 2. Nc3 {[%emt 0:00:00]} e6 {[%emt 0:00:00]} 3. g3 {[%emt 0:00:00]} Nc6 {[%emt 0:00:00]} 4. Bg2 {[%emt 0:00:00]} g6 {[%emt 0:00:00]} 5. Nge2 {[%emt 0:00:38]} Bg7 {[%emt 0:00:07]} 6. O-O {[%emt 0:01:32]} Nge7 {[%emt 0:00:17]} 7. d3 {[%emt 0:01:14]} O-O {[%emt 0:00:19]} 8. Be3 {[%emt 0:01:54]} Nd4 {[%emt 0:01:04]} 9. f4 {[%emt 0:02:15]} d6 {[%emt 0:00:42]} 10. Qd2 {[%emt 0:05:37]} Qb6 {[%emt 0:04:44]} 11. Rab1 {[%emt 0:04:26]} Bd7 {[%emt 0:04:09]} 12. g4 {[%emt 0:03:59]} f5 {[%emt 0:03:09]} 13. g5 {[%emt 0:02:07]} Qc7 {[%emt 0:01:14]} 14. Ng3 {[%emt 0:08:22]} Rab8 {[%emt 0:07:24]} 15. Nce2 {[%emt 0:02:37]} Nxe2+ {[%emt 0:06:27]} 16. Qxe2 {[%emt 0:00:28]} fxe4 {[%emt 0:01:11]} 17. dxe4 {[%emt 0:01:14]} d5 {[%emt 0:01:05]} 18. c3 {[%emt 0:09:25]} a6 {[%emt 0:05:24]} 19. Qd1 {[%emt 0:01:32]} Bb5 {[%emt 0:01:09]} 20. Rf2 {[%emt 0:01:40]} Rbd8 {[%emt 0:03:35]} 21. Qg4 {[%emt 0:03:21]} Bd7 {[%emt 0:04:56]} 22. Qe2 {[%emt 0:05:03]} Kh8 {[%emt 0:08:37]} 23. Rd1 {[%emt 0:06:56]} Bc8 {[%emt 0:06:28]} 24. Qc2 {[%emt 0:02:59]} b6 {[%emt 0:01:18]} 25. Rfd2 {[%emt 0:06:10]} Bb7 {[%emt 0:04:45]} 26. Qb3 {[%emt 0:07:11]} Rd6 {[%emt 0:12:44]} 27. Qc2 {[%emt 0:09:45]} Rdd8 {[%emt 0:02:17]} 28. Bh3 {[%emt 0:03:22]} Qc6 {[%emt 0:01:45]} 29. Bg2 {[%emt 0:03:49]} Qc7 {[%emt 0:00:34]} 30. Qb1 {[%emt 0:02:57]} dxe4 {[%emt 0:01:31]} 31. Bxe4 {[%emt 0:01:29]} Nd5 {[%emt 0:00:43]} 32. Bxd5 {[%emt 0:01:24]} exd5 {[%emt 0:02:08]} 33. Qc2 {[%emt 0:01:18]} Rde8 {[%emt 0:01:05]} 34. Re2 {[%emt 0:00:33]} d4 {[%emt 0:00:58]} 35. cxd4 {[%emt 0:00:22]} Bf3 {[%emt 0:00:15]} 36. Rde1 {[%emt 0:00:36]} Bxe2 {[%emt 0:00:13]} 37. Rxe2 {[%emt 0:00:16]} c4 {[%emt 0:00:48]} 38. Qc1 {[%emt 0:00:59]} Re7 {[%emt 0:01:10]} 39. Qd2 {[%emt 0:00:37]} Rfe8 {[%emt 0:02:32]} 40. d5 {[%emt 0:00:39]} Rd7 {[%emt 0:07:57]} 41. f5 {[%emt 0:30:49]} Rdd8 {[%emt 0:08:49]} 42. f6 {[%emt 0:00:00]} Bf8 {[%emt 0:01:52]} 43. Qd4 {[%emt 0:00:00]} Qf7 {[%emt 0:06:03]} 44. Qxb6 {[%emt 0:00:00]} Rxd5 {[%emt 0:02:30]} 45. Qxa6 {[%emt 0:00:00]} h6 {[%emt 0:02:42]} 46. h4 {[%emt 0:00:00]} Rd3 {[%emt 0:00:59]} 47. Kf2 {[%emt 0:00:00]} Rdxe3 {[%emt 0:02:44]} 48. Rxe3 {[%emt 0:00:00]} Bc5 {[%emt 0:00:06]} 49. Nf1 {[%emt 0:00:00]} Qc7 {[%emt 0:04:28]} 50. Kf3 {[%emt 0:00:00]} Bxe3 {[%emt 0:01:25]} 51. Nxe3 {[%emt 0:00:00]} Qd7 {[%emt 0:01:09]} 52. Qb6 {[%emt 0:00:00]} Qh3+ {[%emt 0:00:36]} 53. Ke2 {[%emt 0:01:17]} Qg2+ {[%emt 0:00:49]} 54. Ke1 {[%emt 0:02:57]} Qg1+ {[%emt 0:01:00]} 55. Ke2 {[%emt 0:00:40]} 1/2-1/2

[Event "EYTCC U12 Girls 2018"]
[Site "Bad Blankeburg"]
[Date "2018.07.14"]
[Round "5"]
[White "Ulrich, Helena Irene"]
[Black "Bashylina, Luisa"]
[Result "0-1"]
[ECO "C00"]
[WhiteElo "1249"]
[BlackElo "1836"]
[Annotator "NA"]
[PlyCount "110"]
[EventDate "2018.07.12"]
[EventType "swiss"]
[EventCountry "GER"]
[SourceTitle "playchess.com"]
[Source "ChessBase"]
[SourceQuality "1"]
[TimeControl "40/5400+30:1800+30"]

1. e4 {[%emt 0:00:00]} e6 {[%emt 0:00:00]} 2. Nf3 {[%emt 0:00:04]} d5 {[%emt 0:00:11]} 3. e5 {[%emt 0:00:18]} c5 {[%emt 0:00:41]} 4. b4 {[%emt 0:00:23]} c4 {[%emt 0:02:57]} 5. c3 {[%emt 0:03:10]} Ne7 {[%emt 0:03:57]} 6. d4 {[%emt 0:06:06]} cxd3 {[%emt 0:02:03]} 7. Bxd3 {[%emt 0:00:44]} Ng6 {[%emt 0:00:54]} 8. O-O {[%emt 0:01:36]} Be7 {[%emt 0:03:16]} 9. Nbd2 {[%emt 0:05:41]} Qc7 {[%emt 0:02:08]} 10. Bb2 {[%emt 0:03:29]} Nxe5 {[%emt 0:03:51]} 11. Nxe5 {[%emt 0:00:07]} Qxe5 {[%emt 0:00:07]} 12. Nf3 {[%emt 0:03:52]} Qd6 {[%emt 0:02:37]} 13. Qc2 {[%emt 0:05:22]} h6 {[%emt 0:01:43]} 14. Rfd1 {[%emt 0:06:04]} O-O {[%emt 0:14:13]} 15. a3 {[%emt 0:02:02]} Bf6 {[%emt 0:03:04]} 16. Rac1 {[%emt 0:04:56]} Qe7 {[%emt 0:05:42]} 17. c4 {[%emt 0:04:05]} dxc4 {[%emt 0:03:17]} 18. Bxc4 {[%emt 0:00:38]} Bd7 {[%emt 0:02:05]} 19. Bxf6 {[%emt 0:07:21]} Qxf6 {[%emt 0:00:15]} 20. Qe2 {[%emt 0:06:33]} a6 {[%emt 0:08:47]} 21. Ne5 {[%emt 0:06:19]} Bc6 {[%emt 0:05:41]} 22. Rd2 {[%emt 0:11:21]} Qg5 {[%emt 0:06:54]} 23. Nxc6 {[%emt 0:01:52]} Nxc6 {[%emt 0:00:22]} 24. Qe1 {[%emt 0:03:20]} Ne5 {[%emt 0:04:55]} 25. Be2 {[%emt 0:01:07]} Rac8 {[%emt 0:02:59]} 26. Rdc2 {[%emt 0:00:57]} Rxc2 {[%emt 0:01:37]} 27. Rxc2 {[%emt 0:00:14]} Rd8 {[%emt 0:01:51]} 28. h3 {[%emt 0:02:56]} Nd3 {[%emt 0:03:26]} 29. Bxd3 {[%emt 0:00:57]} Rxd3 {[%emt 0:00:10]} 30. Qb1 {[%emt 0:01:46]} Qd8 {[%emt 0:02:12]} 31. Rc1 {[%emt 0:01:10]} Rxa3 {[%emt 0:02:03]} 32. Rc4 {[%emt 0:02:32]} Rd3 {[%emt 0:01:11]} 33. Qc2 {[%emt 0:03:10]} Rd2 {[%emt 0:02:02]} 34. Rc8 {[%emt 0:01:15]} Rxc2 {[%emt 0:00:06]} 35. Rxd8+ {[%emt 0:00:04]} Kh7 {[%emt 0:00:06]} 36. Rd7 {[%emt 0:00:17]} Kg6 {[%emt 0:00:14]} 37. Rxb7 {[%emt 0:00:16]} Rb2 {[%emt 0:00:12]} 38. Ra7 {[%emt 0:00:36]} Rxb4 {[%emt 0:00:08]} 39. Rxa6 {[%emt 0:00:08]} Rb2 {[%emt 0:00:27]} 40. Ra7 {[%emt 0:00:42]} Kf6 {[%emt 0:00:39]} 41. Ra5 {[%emt 0:30:33]} Rd2 {[%emt 0:31:13]} 42. g4 {[%emt 0:01:24]} Rd5 {[%emt 0:00:46]} 43. Ra3 {[%emt 0:01:24]} h5 {[%emt 0:01:45]} 44. Rf3+ {[%emt 0:00:35]} Kg6 {[%emt 0:00:38]} 45. gxh5+ {[%emt 0:00:09]} Rxh5 {[%emt 0:00:14]} 46. Kh2 {[%emt 0:02:38]} Rf5 {[%emt 0:00:33]} 47. Rg3+ {[%emt 0:01:28]} Kf6 {[%emt 0:00:26]} 48. Kg2 {[%emt 0:00:57]} Rg5 {[%emt 0:00:09]} 49. Rxg5 {[%emt 0:00:44]} Kxg5 {[%emt 0:00:06]} 50. Kg3 {[%emt 0:00:11]} e5 {[%emt 0:00:23]} 51. h4+ {[%emt 0:01:04]} Kf5 {[%emt 0:00:55]} 52. f3 {[%emt 0:00:39]} f6 {[%emt 0:02:51]} 53. Kf2 {[%emt 0:00:00]} Kf4 {[%emt 0:00:00]} 54. h5 {[%emt 0:00:00]} f5 {[%emt 0:00:00]} 55. Ke2 {[%emt 0:00:00]} Kg5 {[%emt 0:00:00]} 0-1

[Event "EYTCC U12 Girls 2018"]
[Site "Bad Blankeburg"]
[Date "2018.07.15"]
[Round "6"]
[White "Gaal, Zsoka"]
[Black "Cornileau, Juliette"]
[Result "1-0"]
[ECO "D79"]
[WhiteElo "2044"]
[BlackElo "1644"]
[Annotator "NA"]
[PlyCount "74"]
[EventDate "2018.07.12"]
[EventType "swiss"]
[EventCountry "GER"]
[SourceTitle "playchess.com"]
[Source "ChessBase"]
[SourceQuality "1"]
[TimeControl "40/5400+30:1800+30"]

1. Nf3 {[%emt 0:00:00]} Nf6 {[%emt 0:00:00]} 2. g3 {[%emt 0:00:00]} g6 {[%emt 0:00:00]} 3. Bg2 {[%emt 0:00:11]} Bg7 {[%emt 0:00:00]} 4. c4 {[%emt 0:00:32]} c6 {[%emt 0:00:32]} 5. O-O {[%emt 0:00:35]} O-O {[%emt 0:00:11]} 6. d4 {[%emt 0:02:25]} d5 {[%emt 0:00:51]} 7. cxd5 {[%emt 0:02:39]} cxd5 {[%emt 0:00:17]} 8. Ne5 {[%emt 0:00:34]} Ng4 {[%emt 0:09:02]} 9. f4 {[%emt 0:11:50]} Nxe5 {[%emt 0:01:21]} 10. fxe5 {[%emt 0:01:15]} Nc6 {[%emt 0:11:25]} 11. Nc3 {[%emt 0:13:15]} e6 {[%emt 0:05:04]} 12. e3 {[%emt 0:04:54]} f6 {[%emt 0:06:46]} 13. exf6 {[%emt 0:09:57]} Bxf6 {[%emt 0:00:45]} 14. b3 {[%emt 0:13:20]} Bg7 {[%emt 0:06:27]} 15. Rxf8+ {[%emt 0:08:42]} Qxf8 {[%emt 0:00:54]} 16. Bb2 {[%emt 0:01:10]} b6 {[%emt 0:07:22]} 17. Nxd5 {[%emt 0:07:56]} Bb7 {[%emt 0:02:55]} 18. Nc7 {[%emt 0:07:37]} Rc8 {[%emt 0:03:20]} 19. Nxe6 {[%emt 0:01:29]} Qe7 {[%emt 0:01:17]} 20. Nxg7 {[%emt 0:01:36]} Qxg7 {[%emt 0:02:33]} 21. Qd2 {[%emt 0:01:28]} Qd7 {[%emt 0:09:28]} 22. d5 {[%emt 0:02:54]} Ne7 {[%emt 0:03:05]} 23. Qd4 {[%emt 0:01:41]} Nf5 {[%emt 0:06:09]} 24. Qh8+ {[%emt 0:00:46]} Kf7 {[%emt 0:00:08]} 25. Qxh7+ {[%emt 0:00:22]} Ke8 {[%emt 0:00:18]} 26. Qxd7+ {[%emt 0:01:43]} Kxd7 {[%emt 0:00:08]} 27. e4 {[%emt 0:00:20]} Ne3 {[%emt 0:00:25]} 28. Bh3+ {[%emt 0:00:17]} Kd8 {[%emt 0:00:28]} 29. Bxc8 {[%emt 0:01:14]} Kxc8 {[%emt 0:00:02]} 30. Re1 {[%emt 0:00:31]} Ng4 {[%emt 0:00:30]} 31. Bg7 {[%emt 0:00:32]} Kd8 {[%emt 0:00:37]} 32. h3 {[%emt 0:00:14]} Bc8 {[%emt 0:00:04]} 33. hxg4 {[%emt 0:00:13]} Bxg4 {[%emt 0:00:03]} 34. e5 {[%emt 0:00:25]} Bf3 {[%emt 0:00:13]} 35. d6 {[%emt 0:00:19]} Bc6 {[%emt 0:00:21]} 36. e6 {[%emt 0:00:16]} Ke8 {[%emt 0:00:23]} 37. Rf1 {[%emt 0:00:32]} Kd8 1-0

[Event "EYTCC U12 Girls 2018"]
[Site "Bad Blankeburg"]
[Date "2018.07.15"]
[Round "6"]
[White "Wagner, Margarethe"]
[Black "Fizerova, Lucie"]
[Result "1-0"]
[ECO "B56"]
[WhiteElo "1635"]
[BlackElo "1554"]
[Annotator "NA"]
[PlyCount "107"]
[EventDate "2018.07.12"]
[EventType "swiss"]
[EventCountry "GER"]
[SourceTitle "playchess.com"]
[Source "ChessBase"]
[SourceQuality "1"]
[TimeControl "40/5400+30:1800+30"]

1. e4 {[%emt 0:00:00]} c5 {[%emt 0:00:00]} 2. Nc3 {[%emt 0:00:00]} d6 {[%emt 0:00:12]} 3. Nge2 {[%emt 0:00:11]} Nf6 {[%emt 0:00:25]} 4. d4 {[%emt 0:03:53]} cxd4 {[%emt 0:00:41]} 5. Nxd4 {[%emt 0:00:10]} Nc6 {[%emt 0:00:18]} 6. f3 {[%emt 0:01:10]} e5 {[%emt 0:00:16]} 7. Nb3 {[%emt 0:00:48]} Be7 {[%emt 0:00:13]} 8. Be3 {[%emt 0:01:03]} O-O {[%emt 0:00:13]} 9. Qd2 {[%emt 0:00:50]} a5 {[%emt 0:00:13]} 10. Bb5 {[%emt 0:08:31]} Na7 {[%emt 0:00:48]} 11. Be2 {[%emt 0:04:08]} Nc6 {[%emt 0:00:16]} 12. O-O {[%emt 0:02:25]} a4 {[%emt 0:01:55]} 13. Nc1 {[%emt 0:01:44]} Be6 {[%emt 0:01:37]} 14. Bb5 {[%emt 0:03:56]} Na5 {[%emt 0:19:00]} 15. Nd5 {[%emt 0:14:26]} Bxd5 {[%emt 0:13:58]} 16. exd5 {[%emt 0:00:58]} Rc8 {[%emt 0:02:54]} 17. b3 {[%emt 0:04:49]} b6 {[%emt 0:02:54]} 18. Bxa4 {[%emt 0:01:51]} e4 {[%emt 0:11:51]} 19. f4 {[%emt 0:06:51]} Qc7 {[%emt 0:02:08]} 20. c4 {[%emt 0:03:09]} Nb7 {[%emt 0:02:30]} 21. Bb5 {[%emt 0:03:09]} Nc5 {[%emt 0:02:41]} 22. b4 {[%emt 0:01:19]} Ncd7 {[%emt 0:03:36]} 23. Nb3 {[%emt 0:02:22]} Ng4 {[%emt 0:04:02]} 24. Rac1 {[%emt 0:02:00]} Nxe3 {[%emt 0:07:50]} 25. Qxe3 {[%emt 0:00:10]} Nf6 {[%emt 0:00:32]} 26. Nd2 {[%emt 0:02:44]} Ra8 {[%emt 0:06:29]} 27. a4 {[%emt 0:01:07]} Rac8 {[%emt 0:05:51]} 28. h3 {[%emt 0:03:32]} h6 {[%emt 0:02:43]} 29. Nxe4 {[%emt 0:01:29]} Nxe4 30. Qxe4 {[%emt 0:00:05]} Bf6 {[%emt 0:00:37]} 31. Rc2 {[%emt 0:01:12]} Be7 {[%emt 0:02:20]} 32. Re1 {[%emt 0:06:02]} Bf6 {[%emt 0:00:20]} 33. Re3 {[%emt 0:05:59]} Qa7 {[%emt 0:03:39]} 34. Ra3 {[%emt 0:03:13]} Rc7 {[%emt 0:00:39]} 35. Kh2 {[%emt 0:02:32]} Re7 {[%emt 0:00:14]} 36. Qd3 {[%emt 0:01:21]} Rc8 {[%emt 0:00:33]} 37. Re2 {[%emt 0:03:30]} Rec7 {[%emt 0:01:17]} 38. Bc6 {[%emt 0:02:04]} Rd8 {[%emt 0:02:15]} 39. Re4 {[%emt 0:01:38]} Rcc8 {[%emt 0:00:29]} 40. Qe3 {[%emt 0:00:18]} Kf8 {[%emt 0:00:47]} 41. a5 {[%emt 0:32:39]} Rb8 {[%emt 0:01:50]} 42. Ra2 {[%emt 0:00:00]} g6 {[%emt 0:01:33]} 43. a6 {[%emt 0:00:00]} Kg7 {[%emt 0:02:04]} 44. b5 {[%emt 0:00:00]} Rbc8 {[%emt 0:04:14]} 45. g4 {[%emt 0:00:00]} Kg8 {[%emt 0:04:09]} 46. g5 {[%emt 0:00:00]} Bg7 {[%emt 0:00:34]} 47. Re7 {[%emt 0:00:00]} Rc7 {[%emt 0:00:43]} 48. Rxc7 {[%emt 0:00:00]} Qxc7 {[%emt 0:00:05]} 49. a7 {[%emt 0:00:00]} hxg5 {[%emt 0:00:57]} 50. a8=Q {[%emt 0:00:00]} gxf4 {[%emt 0:00:50]} 51. Qxd8+ {[%emt 0:00:00]} Qxd8 {[%emt 0:00:10]} 52. Qe8+ {[%emt 0:00:00]} Qxe8 {[%emt 0:00:09]} 53. Bxe8 {[%emt 0:00:00]} Be5 {[%emt 0:01:22]} 54. Kg2 1-0